[Event "Titled Tuesday Blitz March 15 Late 2022"]
[White "Constantinou, Peter"]
[Black "Hess, Max"]
[WhiteFideId "413038"]
[BlackFideId "24656666"]
[WhiteElo "2230"]
[BlackElo "2276"]
[Result "1-0"]
[Round "06"]
[TimeControl "180+1"]
[Date "2022.03.16"]
[WhiteClock "0:01:33"]
[BlackClock "0:00:01"]

1. e4 {[%clk 0:03:00]}  c6 {[%clk 0:02:59]} 2. Nf3 {[%clk 0:03:01]}  d5 {[%clk 0:03:00]} 3. Nc3 {[%clk 0:03:02]}  dxe4 {[%clk 0:03:00]} 4. Nxe4 {[%clk 0:03:02]}  Nf6 {[%clk 0:03:01]} 5. Qe2 {[%clk 0:03:02]}  Nxe4 {[%clk 0:03:00]} 6. Qxe4 {[%clk 0:03:02]}  Nd7 {[%clk 0:03:01]} 7. Bc4 {[%clk 0:03:02]}  Nf6 {[%clk 0:03:00]} 8. Ne5 {[%clk 0:03:03]}  e6 {[%clk 0:03:00]} 9. Qe2 {[%clk 0:03:01]}  b5 {[%clk 0:03:01]} 10. Bb3 {[%clk 0:03:00]}  Qc7 {[%clk 0:02:56]} 11. d4 {[%clk 0:02:58]}  Bd6 {[%clk 0:02:53]} 12. O-O {[%clk 0:02:57]}  O-O {[%clk 0:02:18]} 13. c3 {[%clk 0:02:57]}  a5 {[%clk 0:02:18]} 14. Bf4 {[%clk 0:02:55]}  c5 {[%clk 0:02:14]} 15. dxc5 {[%clk 0:02:53]}  Qxc5 {[%clk 0:02:14]} 16. Qf3 {[%clk 0:02:53]}  Rb8 {[%clk 0:01:42]} 17. Ng4 {[%clk 0:02:52]}  Nxg4 {[%clk 0:01:33]} 18. Qxg4 {[%clk 0:02:53]}  Bxf4 {[%clk 0:01:31]} 19. Qxf4 {[%clk 0:02:54]}  Bb7 {[%clk 0:01:30]} 20. Rad1 {[%clk 0:02:48]}  Rfd8 {[%clk 0:01:25]} 21. a3 {[%clk 0:02:44]}  h6 {[%clk 0:01:21]} 22. h4 {[%clk 0:02:43]}  Qc6 {[%clk 0:01:14]} 23. Qg3 {[%clk 0:02:43]}  Qb6 {[%clk 0:01:07]} 24. h5 {[%clk 0:02:36]}  Rxd1 {[%clk 0:01:07]} 25. Rxd1 {[%clk 0:02:36]}  Rd8 {[%clk 0:01:07]} 26. Qf4 {[%clk 0:02:26]}  Rxd1+ {[%clk 0:00:29]} 27. Bxd1 {[%clk 0:02:27]}  Qd8 {[%clk 0:00:25]} 28. Be2 {[%clk 0:02:26]}  Qd7 {[%clk 0:00:21]} 29. b4 {[%clk 0:02:26]}  axb4 {[%clk 0:00:20]} 30. axb4 {[%clk 0:02:27]}  f5 {[%clk 0:00:20]} 31. Qe5 {[%clk 0:02:25]}  Bd5 {[%clk 0:00:19]} 32. Kh2 {[%clk 0:02:25]}  Kf7 {[%clk 0:00:19]} 33. Bd3 {[%clk 0:02:12]}  Qc6 {[%clk 0:00:19]} 34. f3 {[%clk 0:02:07]}  Qd7 {[%clk 0:00:17]} 35. g4 {[%clk 0:02:02]}  fxg4 {[%clk 0:00:16]} 36. Bg6+ {[%clk 0:02:02]}  Kg8 {[%clk 0:00:15]} 37. fxg4 {[%clk 0:02:01]}  Bc6 {[%clk 0:00:15]} 38. Kg3 {[%clk 0:01:59]}  Kf8 {[%clk 0:00:14]} 39. Qc5+ {[%clk 0:01:47]}  Kg8 {[%clk 0:00:12]} 40. Qe5 {[%clk 0:01:48]}  Kf8 {[%clk 0:00:13]} 41. Qf4+ {[%clk 0:01:47]}  Ke7 {[%clk 0:00:11]} 42. Kf2 {[%clk 0:01:45]}  Qa7+ {[%clk 0:00:10]} 43. Ke2 {[%clk 0:01:42]}  Qa2+ {[%clk 0:00:10]} 44. Ke3 {[%clk 0:01:43]}  Qb2 {[%clk 0:00:07]} 45. Qf7+ {[%clk 0:01:41]}  Kd6 {[%clk 0:00:07]} 46. Qf8+ {[%clk 0:01:41]}  Kc7 {[%clk 0:00:07]} 47. Qxg7+ {[%clk 0:01:41]}  Kc8 {[%clk 0:00:04]} 48. Qf8+ {[%clk 0:01:40]}  Kb7 {[%clk 0:00:04]} 49. Qc5 {[%clk 0:01:39]}  Qc1+ {[%clk 0:00:03]} 50. Ke2 {[%clk 0:01:40]}  Qc2+ {[%clk 0:00:02]} 51. Ke3 {[%clk 0:01:39]}  Qc1+ {[%clk 0:00:01]} 52. Ke2 {[%clk 0:01:40]}  Qb2+ {[%clk 0:00:02]} 53. Kd3 {[%clk 0:01:40]}  Qb1+ {[%clk 0:00:02]} 54. Kd4 {[%clk 0:01:39]}  Qg1+ {[%clk 0:00:01]} 55. Ke5 {[%clk 0:01:33]} 1-0


[Site "https://www.chess.com"]

[Event "Titled Tuesday Blitz March 15 Late 2022"]
[White "Dauner, Benedikt"]
[Black "Papasimakopoulos, Alexandros"]
[WhiteFideId "16225899"]
[BlackFideId "4244125"]
[WhiteElo "2230"]
[BlackElo "2340"]
[Result "0-1"]
[Round "06"]
[TimeControl "180+1"]
[Date "2022.03.16"]
[WhiteClock "0:00:01"]
[BlackClock "0:00:03"]

1. d4 {[%clk 0:02:59]}  e6 {[%clk 0:02:59]} 2. Nf3 {[%clk 0:02:58]}  Nf6 {[%clk 0:02:58]} 3. Bf4 {[%clk 0:02:57]}  c5 {[%clk 0:02:58]} 4. c3 {[%clk 0:02:57]}  Nc6 {[%clk 0:02:57]} 5. e3 {[%clk 0:02:56]}  d5 {[%clk 0:02:57]} 6. Nbd2 {[%clk 0:02:56]}  Bd6 {[%clk 0:02:57]} 7. Bg3 {[%clk 0:02:56]}  Qe7 {[%clk 0:02:55]} 8. Ne5 {[%clk 0:02:54]}  Nd7 {[%clk 0:02:53]} 9. Nxd7 {[%clk 0:02:47]}  Bxd7 {[%clk 0:02:53]} 10. dxc5 {[%clk 0:02:36]}  Bxg3 {[%clk 0:02:49]} 11. hxg3 {[%clk 0:02:37]}  Qxc5 {[%clk 0:02:50]} 12. Bd3 {[%clk 0:02:36]}  h6 {[%clk 0:02:50]} 13. Qe2 {[%clk 0:02:29]}  Ne5 {[%clk 0:02:49]} 14. O-O-O {[%clk 0:02:19]}  a5 {[%clk 0:02:21]} 15. Kb1 {[%clk 0:02:09]}  a4 {[%clk 0:02:13]} 16. a3 {[%clk 0:02:07]}  Nxd3 {[%clk 0:01:53]} 17. Qxd3 {[%clk 0:02:06]}  O-O {[%clk 0:01:51]} 18. Qd4 {[%clk 0:02:02]}  Qc7 {[%clk 0:01:46]} 19. f4 {[%clk 0:01:57]}  f6 {[%clk 0:01:41]} 20. Nf3 {[%clk 0:01:55]}  Bc6 {[%clk 0:01:41]} 21. g4 {[%clk 0:01:52]}  Rae8 {[%clk 0:01:30]} 22. g5 {[%clk 0:01:52]}  e5 {[%clk 0:01:28]} 23. Qb4 {[%clk 0:01:48]}  hxg5 {[%clk 0:00:55]} 24. fxg5 {[%clk 0:01:46]}  f5 {[%clk 0:00:51]} 25. Qh4 {[%clk 0:01:15]}  Qd6 {[%clk 0:00:47]} 26. Qh5 {[%clk 0:00:58]}  Re6 {[%clk 0:00:47]} 27. Nxe5 {[%clk 0:00:40]}  Qxe5 {[%clk 0:00:31]} 28. g6 {[%clk 0:00:40]}  Rxg6 {[%clk 0:00:29]} 29. Qxg6 {[%clk 0:00:40]}  Be8 {[%clk 0:00:22]} 30. Qg5 {[%clk 0:00:29]}  Rf6 {[%clk 0:00:13]} 31. Qf4 {[%clk 0:00:26]}  Qe6 {[%clk 0:00:12]} 32. Rd2 {[%clk 0:00:23]}  Rf8 {[%clk 0:00:10]} 33. Rhd1 {[%clk 0:00:22]}  d4 {[%clk 0:00:11]} 34. Rxd4 {[%clk 0:00:18]}  Bf7 {[%clk 0:00:11]} 35. c4 {[%clk 0:00:19]}  b5 {[%clk 0:00:12]} 36. Qd6 {[%clk 0:00:16]}  Qxe3 {[%clk 0:00:11]} 37. cxb5 {[%clk 0:00:06]}  Qb3 {[%clk 0:00:11]} 38. Rd5 {[%clk 0:00:06]}  Rc8 {[%clk 0:00:09]} 39. b6 {[%clk 0:00:03]}  g6 {[%clk 0:00:03]} 40. b7 {[%clk 0:00:02]}  Qxb7 {[%clk 0:00:03]} 41. R5d4 {[%clk 0:00:02]}  Qb3 {[%clk 0:00:02]} 42. Rd5 {[%clk 0:00:02]}  Rb8 {[%clk 0:00:03]} 43. R1d2 {[%clk 0:00:01]}  Rc8 {[%clk 0:00:03]} 44. Qd7 {[%clk 0:00:01]}  Qc4 {[%clk 0:00:03]} 0-1


[Site "https://www.chess.com"]

[Event "Titled Tuesday Blitz March 15 Late 2022"]
[White "Demchenko, Anton"]
[Black "Riehle, Marco"]
[WhiteFideId "4160258"]
[BlackFideId "12904392"]
[WhiteElo "2539"]
[BlackElo "2462"]
[Result "0-1"]
[Round "06"]
[TimeControl "180+1"]
[Date "2022.03.15"]
[WhiteClock "0:00:01"]
[BlackClock "0:00:04"]

1. e4 {[%clk 0:03:00]}  e5 {[%clk 0:02:59]} 2. Nf3 {[%clk 0:03:01]}  Nf6 {[%clk 0:03:00]} 3. Nxe5 {[%clk 0:03:01]}  Nxe4 {[%clk 0:02:59]} 4. Nf3 {[%clk 0:03:02]}  d5 {[%clk 0:02:59]} 5. d4 {[%clk 0:02:54]}  Bd6 {[%clk 0:02:59]} 6. Bd3 {[%clk 0:02:50]}  O-O {[%clk 0:02:59]} 7. h3 {[%clk 0:02:40]}  Re8 {[%clk 0:02:54]} 8. O-O {[%clk 0:02:40]}  Bf5 {[%clk 0:02:43]} 9. c4 {[%clk 0:02:27]}  c6 {[%clk 0:02:41]} 10. Nc3 {[%clk 0:02:26]}  Nxc3 {[%clk 0:02:29]} 11. bxc3 {[%clk 0:02:27]}  Bxd3 {[%clk 0:02:29]} 12. Qxd3 {[%clk 0:02:28]}  dxc4 {[%clk 0:02:29]} 13. Qxc4 {[%clk 0:02:29]}  Nd7 {[%clk 0:02:25]} 14. a4 {[%clk 0:02:25]}  h6 {[%clk 0:02:17]} 15. Rb1 {[%clk 0:02:24]}  Qc7 {[%clk 0:02:12]} 16. Qb3 {[%clk 0:02:17]}  b6 {[%clk 0:02:09]} 17. Rd1 {[%clk 0:02:13]}  Rad8 {[%clk 0:02:02]} 18. Qc4 {[%clk 0:02:00]}  Nf6 {[%clk 0:01:56]} 19. Bb2 {[%clk 0:01:47]}  Nd5 {[%clk 0:01:40]} 20. Re1 {[%clk 0:01:45]}  Nf4 {[%clk 0:01:35]} 21. Re3 {[%clk 0:01:38]}  Nd5 {[%clk 0:01:32]} 22. Ree1 {[%clk 0:01:28]}  Nf4 {[%clk 0:01:27]} 23. Rbd1 {[%clk 0:01:28]}  Rxe1+ {[%clk 0:01:15]} 24. Rxe1 {[%clk 0:01:28]}  Nd5 {[%clk 0:00:50]} 25. Qb3 {[%clk 0:01:21]}  Qd7 {[%clk 0:00:45]} 26. Qc2 {[%clk 0:01:10]}  Re8 {[%clk 0:00:44]} 27. Ne5 {[%clk 0:00:55]}  f6 {[%clk 0:00:39]} 28. Nf3 {[%clk 0:00:42]}  Rxe1+ {[%clk 0:00:39]} 29. Nxe1 {[%clk 0:00:43]}  Qe6 {[%clk 0:00:39]} 30. Nf3 {[%clk 0:00:37]}  Nf4 {[%clk 0:00:39]} 31. c4 {[%clk 0:00:32]}  h5 {[%clk 0:00:26]} 32. Kf1 {[%clk 0:00:31]}  a6 {[%clk 0:00:22]} 33. Bc1 {[%clk 0:00:30]}  b5 {[%clk 0:00:19]} 34. d5 {[%clk 0:00:25]}  cxd5 {[%clk 0:00:19]} 35. cxb5 {[%clk 0:00:25]}  axb5 {[%clk 0:00:19]} 36. axb5 {[%clk 0:00:26]}  Bb8 {[%clk 0:00:16]} 37. Bxf4 {[%clk 0:00:24]}  Bxf4 {[%clk 0:00:17]} 38. Qb3 {[%clk 0:00:25]}  Bc7 {[%clk 0:00:16]} 39. Nd4 {[%clk 0:00:12]}  Qe4 {[%clk 0:00:16]} 40. Ne2 {[%clk 0:00:11]}  Bb6 {[%clk 0:00:13]} 41. Ng3 {[%clk 0:00:04]}  Qd4 {[%clk 0:00:10]} 42. Qc2 {[%clk 0:00:01]}  h4 {[%clk 0:00:09]} 43. Nh1 {[%clk 0:00:01]}  Qe5 {[%clk 0:00:05]} 44. Kg1 {[%clk 0:00:01]}  d4 {[%clk 0:00:04]} 45. Qd3 {[%clk 0:00:01]}  Qd5 {[%clk 0:00:04]} 46. g3 {[%clk 0:00:01]}  Qc5 {[%clk 0:00:03]} 47. gxh4 {[%clk 0:00:01]}  Qc3 {[%clk 0:00:04]} 0-1


[Site "https://www.chess.com"]

[Event "Titled Tuesday Blitz March 15 Late 2022"]
[White "Drozdowski, Kacper"]
[Black "Babazada, Khazar"]
[WhiteFideId "1136720"]
[BlackFideId "13413554"]
[WhiteElo "2507"]
[BlackElo "2418"]
[Result "1/2-1/2"]
[Round "06"]
[TimeControl "180+1"]
[Date "2022.03.15"]
[WhiteClock "0:00:20"]
[BlackClock "0:00:16"]

1. e4 {[%clk 0:02:58]}  Nf6 {[%clk 0:02:59]} 2. e5 {[%clk 0:02:57]}  Nd5 {[%clk 0:02:58]} 3. d4 {[%clk 0:02:57]}  Nb6 {[%clk 0:02:58]} 4. Nf3 {[%clk 0:02:57]}  d6 {[%clk 0:02:58]} 5. Be2 {[%clk 0:02:55]}  g6 {[%clk 0:02:58]} 6. O-O {[%clk 0:02:55]}  Bg7 {[%clk 0:02:58]} 7. exd6 {[%clk 0:02:53]}  cxd6 {[%clk 0:02:57]} 8. c4 {[%clk 0:02:52]}  O-O {[%clk 0:02:58]} 9. Nc3 {[%clk 0:02:52]}  Bf5 {[%clk 0:02:57]} 10. b3 {[%clk 0:02:48]}  Nc6 {[%clk 0:02:56]} 11. Be3 {[%clk 0:02:47]}  d5 {[%clk 0:02:56]} 12. c5 {[%clk 0:02:24]}  Nc8 {[%clk 0:02:54]} 13. h3 {[%clk 0:02:19]}  e6 {[%clk 0:02:54]} 14. Qd2 {[%clk 0:02:14]}  N8e7 {[%clk 0:02:54]} 15. Rfd1 {[%clk 0:02:12]}  Be4 {[%clk 0:02:54]} 16. Ne1 {[%clk 0:02:09]}  Nf5 {[%clk 0:01:43]} 17. Nxe4 {[%clk 0:02:07]}  dxe4 {[%clk 0:01:38]} 18. Nc2 {[%clk 0:02:05]}  Nce7 {[%clk 0:01:28]} 19. Rac1 {[%clk 0:02:01]}  Nd5 {[%clk 0:01:28]} 20. Bc4 {[%clk 0:01:43]}  Ndxe3 {[%clk 0:01:24]} 21. fxe3 {[%clk 0:01:39]}  Bh6 {[%clk 0:01:24]} 22. Qf2 {[%clk 0:01:19]}  Ne7 {[%clk 0:01:24]} 23. d5 {[%clk 0:01:11]}  exd5 {[%clk 0:01:21]} 24. Nb4 {[%clk 0:01:11]}  d4 {[%clk 0:01:07]} 25. Rxd4 {[%clk 0:01:07]}  Qc7 {[%clk 0:01:07]} 26. Rxe4 {[%clk 0:01:04]}  Nf5 {[%clk 0:01:04]} 27. Nd5 {[%clk 0:00:53]}  Qxc5 {[%clk 0:01:03]} 28. Nf6+ {[%clk 0:00:49]}  Kh8 {[%clk 0:01:03]} 29. Re1 {[%clk 0:00:42]}  Rad8 {[%clk 0:00:56]} 30. Ng4 {[%clk 0:00:41]}  Bg7 {[%clk 0:00:55]} 31. Rf4 {[%clk 0:00:40]}  Rfe8 {[%clk 0:00:48]} 32. Bxf7 {[%clk 0:00:39]}  Re7 {[%clk 0:00:46]} 33. Bc4 {[%clk 0:00:38]}  Rde8 {[%clk 0:00:39]} 34. b4 {[%clk 0:00:29]}  Qb6 {[%clk 0:00:37]} 35. Bd3 {[%clk 0:00:29]}  Nxe3 {[%clk 0:00:34]} 36. Nxe3 {[%clk 0:00:29]}  Rxe3 {[%clk 0:00:35]} 37. Rxe3 {[%clk 0:00:29]}  Qxe3 {[%clk 0:00:32]} 38. Qxe3 {[%clk 0:00:28]}  Rxe3 {[%clk 0:00:33]} 39. Bc4 {[%clk 0:00:28]}  Re7 {[%clk 0:00:28]} 40. Kf1 {[%clk 0:00:25]}  Bc3 {[%clk 0:00:26]} 41. b5 {[%clk 0:00:22]}  Kg7 {[%clk 0:00:26]} 42. Bd5 {[%clk 0:00:19]}  Ba5 {[%clk 0:00:26]} 43. Re4 {[%clk 0:00:19]}  Rd7 {[%clk 0:00:27]} 44. Be6 {[%clk 0:00:19]}  Rd1+ {[%clk 0:00:25]} 45. Ke2 {[%clk 0:00:20]}  Rd2+ {[%clk 0:00:25]} 46. Kf3 {[%clk 0:00:20]}  Bb6 {[%clk 0:00:24]} 47. Bb3 {[%clk 0:00:20]}  Kf6 {[%clk 0:00:20]} 48. h4 {[%clk 0:00:19]}  h5 {[%clk 0:00:19]} 49. g4 {[%clk 0:00:18]}  hxg4+ {[%clk 0:00:17]} 50. Rxg4 {[%clk 0:00:19]}  Rd3+ {[%clk 0:00:15]} 51. Ke2 {[%clk 0:00:20]}  Rd4 {[%clk 0:00:15]} 52. Rxd4 {[%clk 0:00:19]}  Bxd4 {[%clk 0:00:16]} 53. Kf3 {[%clk 0:00:20]}  b6 {[%clk 0:00:16]} 54. Kg4 {[%clk 0:00:20]} 1/2-1/2


[Site "https://www.chess.com"]

[Event "Titled Tuesday Blitz March 15 Late 2022"]
[White "Dubov, Daniil"]
[Black "Matlakov, Maxim"]
[WhiteFideId "24126055"]
[BlackFideId "4168003"]
[WhiteElo "2791"]
[BlackElo "2669"]
[Result "1-0"]
[Round "06"]
[TimeControl "180+1"]
[Date "2022.03.15"]
[WhiteClock "0:01:43"]
[BlackClock "0:00:39"]

1. d4 {[%clk 0:03:00]}  d5 {[%clk 0:02:54]} 2. Nf3 {[%clk 0:02:57]}  Nf6 {[%clk 0:02:53]} 3. c4 {[%clk 0:02:58]}  c6 {[%clk 0:02:53]} 4. cxd5 {[%clk 0:02:54]}  cxd5 {[%clk 0:02:53]} 5. Nc3 {[%clk 0:02:55]}  Nc6 {[%clk 0:02:53]} 6. Bf4 {[%clk 0:02:56]}  Bf5 {[%clk 0:02:49]} 7. Qb3 {[%clk 0:02:55]}  Na5 {[%clk 0:02:48]} 8. Qa4+ {[%clk 0:02:55]}  Bd7 {[%clk 0:02:48]} 9. Qc2 {[%clk 0:02:56]}  e6 {[%clk 0:02:48]} 10. e3 {[%clk 0:02:56]}  Bb4 {[%clk 0:02:38]} 11. Bd3 {[%clk 0:02:54]}  Rc8 {[%clk 0:02:26]} 12. O-O {[%clk 0:02:52]}  O-O {[%clk 0:02:25]} 13. Bg5 {[%clk 0:02:43]}  h6 {[%clk 0:02:24]} 14. Bh4 {[%clk 0:02:43]}  Be7 {[%clk 0:02:12]} 15. Rac1 {[%clk 0:02:34]}  Nc6 {[%clk 0:02:08]} 16. a3 {[%clk 0:02:26]}  Nh5 {[%clk 0:02:07]} 17. Bxe7 {[%clk 0:02:23]}  Qxe7 {[%clk 0:02:08]} 18. Ne5 {[%clk 0:02:18]}  Nf6 {[%clk 0:02:07]} 19. f4 {[%clk 0:02:16]}  Rfd8 {[%clk 0:02:06]} 20. Qf2 {[%clk 0:02:15]}  Na5 {[%clk 0:02:00]} 21. g4 {[%clk 0:02:11]}  Be8 {[%clk 0:01:32]} 22. g5 {[%clk 0:02:06]}  hxg5 {[%clk 0:01:31]} 23. fxg5 {[%clk 0:02:06]}  Nh5 {[%clk 0:00:56]} 24. Qh4 {[%clk 0:02:00]}  g6 {[%clk 0:00:56]} 25. Ng4 {[%clk 0:01:50]}  Nc4 {[%clk 0:00:48]} 26. Nf6+ {[%clk 0:01:44]}  Nxf6 {[%clk 0:00:47]} 27. gxf6 {[%clk 0:01:45]}  Qf8 {[%clk 0:00:39]} 28. Rf3 {[%clk 0:01:43]} 1-0


[Site "https://www.chess.com"]

[Event "Titled Tuesday Blitz March 15 Late 2022"]
[White "Eames, Robert S"]
[Black "Desideri, Ricardo Maruchi"]
[WhiteFideId "408743"]
[BlackFideId "2110440"]
[WhiteElo "2105"]
[BlackElo "1945"]
[Result "1-0"]
[Round "06"]
[TimeControl "180+1"]
[Date "2022.03.16"]
[WhiteClock "0:00:53"]
[BlackClock "0:00:13"]

1. e4 {[%clk 0:02:59]}  c5 {[%clk 0:02:59]} 2. Nc3 {[%clk 0:02:58]}  d6 {[%clk 0:03:00]} 3. d4 {[%clk 0:02:57]}  cxd4 {[%clk 0:02:58]} 4. Qxd4 {[%clk 0:02:57]}  a6 {[%clk 0:02:58]} 5. b3 {[%clk 0:02:55]}  e6 {[%clk 0:02:58]} 6. Bb2 {[%clk 0:02:54]}  Nf6 {[%clk 0:02:57]} 7. O-O-O {[%clk 0:02:53]}  Nbd7 {[%clk 0:02:57]} 8. f3 {[%clk 0:02:51]}  b5 {[%clk 0:02:55]} 9. g4 {[%clk 0:02:50]}  h6 {[%clk 0:02:51]} 10. Nge2 {[%clk 0:02:45]}  Qc7 {[%clk 0:02:51]} 11. Kb1 {[%clk 0:02:43]}  Bb7 {[%clk 0:02:49]} 12. Bg2 {[%clk 0:02:41]}  Rc8 {[%clk 0:02:48]} 13. h4 {[%clk 0:02:40]}  Ne5 {[%clk 0:02:23]} 14. g5 {[%clk 0:02:34]}  Nc6 {[%clk 0:02:21]} 15. Qd2 {[%clk 0:02:30]}  Nd7 {[%clk 0:02:19]} 16. g6 {[%clk 0:02:25]}  b4 {[%clk 0:02:03]} 17. Na4 {[%clk 0:02:21]}  fxg6 {[%clk 0:01:45]} 18. Nf4 {[%clk 0:02:20]}  Kf7 {[%clk 0:01:28]} 19. Bh3 {[%clk 0:02:14]}  Nd8 {[%clk 0:01:26]} 20. Rhg1 {[%clk 0:02:00]}  Ne5 {[%clk 0:01:22]} 21. Bxe5 {[%clk 0:01:58]}  dxe5 {[%clk 0:01:22]} 22. Nxg6 {[%clk 0:01:52]}  Rg8 {[%clk 0:01:17]} 23. Qd7+ {[%clk 0:01:45]}  Kf6 {[%clk 0:00:58]} 24. Qxc7 {[%clk 0:01:36]}  Rxc7 {[%clk 0:00:49]} 25. Rxd8 {[%clk 0:01:35]}  Bc5 {[%clk 0:00:30]} 26. Rxg8 {[%clk 0:01:23]}  Bxg1 {[%clk 0:00:28]} 27. Nf8 {[%clk 0:01:10]}  Re7 {[%clk 0:00:16]} 28. Bxe6 {[%clk 0:00:58]}  Rxe6 {[%clk 0:00:15]} 29. Nxe6 {[%clk 0:00:57]}  Kf7 {[%clk 0:00:13]} 30. Rb8 {[%clk 0:00:53]} 1-0


[Site "https://www.chess.com"]

[Event "Titled Tuesday Blitz March 15 Late 2022"]
[White "Fishbein, Alexander"]
[Black "Fishbein, Mitch"]
[WhiteFideId "2000377"]
[BlackFideId "30922917"]
[WhiteElo "2442"]
[BlackElo "1939"]
[Result "1/2-1/2"]
[Round "06"]
[TimeControl "180+1"]
[Date "2022.03.16"]
[WhiteClock "0:02:49"]
[BlackClock "0:02:51"]

1. Nf3 {[%clk 0:02:53]}  Nf6 {[%clk 0:02:59]} 2. c4 {[%clk 0:02:52]}  g6 {[%clk 0:02:58]} 3. Nc3 {[%clk 0:02:51]}  Bg7 {[%clk 0:02:58]} 4. e4 {[%clk 0:02:51]}  d6 {[%clk 0:02:58]} 5. d4 {[%clk 0:02:51]}  O-O {[%clk 0:02:58]} 6. Be2 {[%clk 0:02:51]}  e5 {[%clk 0:02:58]} 7. dxe5 {[%clk 0:02:51]}  dxe5 {[%clk 0:02:58]} 8. Qxd8 {[%clk 0:02:51]}  Rxd8 {[%clk 0:02:58]} 9. Bg5 {[%clk 0:02:51]}  Re8 {[%clk 0:02:58]} 10. Nd5 {[%clk 0:02:50]}  Nxd5 {[%clk 0:02:58]} 11. cxd5 {[%clk 0:02:50]}  c6 {[%clk 0:02:58]} 12. Bc4 {[%clk 0:02:50]}  cxd5 {[%clk 0:02:58]} 13. Bxd5 {[%clk 0:02:50]}  Nd7 {[%clk 0:02:58]} 14. O-O {[%clk 0:02:49]}  h6 {[%clk 0:02:52]} 15. Be3 {[%clk 0:02:49]}  Nf6 {[%clk 0:02:51]} 1/2-1/2


[Site "https://www.chess.com"]

[Event "Titled Tuesday Blitz March 15 Late 2022"]
[White "Gatterer, Florian"]
[Black "Odegov, Artem"]
[WhiteFideId "811688"]
[BlackFideId "34183644"]
[WhiteElo "2218"]
[BlackElo "2286"]
[Result "1/2-1/2"]
[Round "06"]
[TimeControl "180+1"]
[Date "2022.03.16"]
[WhiteClock "0:00:51"]
[BlackClock "0:02:04"]

1. e4 {[%clk 0:02:55]}  e6 {[%clk 0:02:58]} 2. d4 {[%clk 0:02:54]}  d5 {[%clk 0:02:59]} 3. Nc3 {[%clk 0:02:53]}  Bb4 {[%clk 0:02:58]} 4. exd5 {[%clk 0:02:52]}  exd5 {[%clk 0:02:59]} 5. Bd3 {[%clk 0:02:51]}  Nf6 {[%clk 0:03:00]} 6. Ne2 {[%clk 0:02:49]}  O-O {[%clk 0:03:00]} 7. Bf4 {[%clk 0:02:47]}  Nc6 {[%clk 0:03:00]} 8. O-O {[%clk 0:02:46]}  Bg4 {[%clk 0:03:00]} 9. h3 {[%clk 0:02:40]}  Bh5 {[%clk 0:03:00]} 10. a3 {[%clk 0:02:30]}  Be7 {[%clk 0:02:59]} 11. Qd2 {[%clk 0:02:26]}  Qd7 {[%clk 0:02:56]} 12. Ng3 {[%clk 0:02:18]}  Bg6 {[%clk 0:02:55]} 13. Nce2 {[%clk 0:02:12]}  Rae8 {[%clk 0:02:50]} 14. c3 {[%clk 0:02:11]}  Bd6 {[%clk 0:02:47]} 15. Bxd6 {[%clk 0:02:08]}  Qxd6 {[%clk 0:02:47]} 16. Nf4 {[%clk 0:01:54]}  Ne4 {[%clk 0:02:44]} 17. Bxe4 {[%clk 0:01:52]}  Bxe4 {[%clk 0:02:45]} 18. Nxe4 {[%clk 0:01:50]}  Rxe4 {[%clk 0:02:45]} 19. Nd3 {[%clk 0:01:50]}  b6 {[%clk 0:02:44]} 20. Rae1 {[%clk 0:01:47]}  Rfe8 {[%clk 0:02:44]} 21. f3 {[%clk 0:01:48]}  R4e7 {[%clk 0:02:43]} 22. Rxe7 {[%clk 0:01:46]}  Rxe7 {[%clk 0:02:43]} 23. Re1 {[%clk 0:01:46]}  a5 {[%clk 0:02:32]} 24. Rxe7 {[%clk 0:01:44]}  Qxe7 {[%clk 0:02:33]} 25. Qe1 {[%clk 0:01:40]}  Qxe1+ {[%clk 0:02:31]} 26. Nxe1 {[%clk 0:01:40]}  f6 {[%clk 0:02:32]} 27. Kf2 {[%clk 0:01:39]}  Kf7 {[%clk 0:02:32]} 28. Ke3 {[%clk 0:01:37]}  Ke6 {[%clk 0:02:32]} 29. Kd3 {[%clk 0:01:37]}  a4 {[%clk 0:02:32]} 30. Nc2 {[%clk 0:01:33]}  Na5 {[%clk 0:02:32]} 31. Ne3 {[%clk 0:01:33]}  b5 {[%clk 0:02:31]} 32. f4 {[%clk 0:01:27]}  Nc4 {[%clk 0:02:14]} 33. Nxc4 {[%clk 0:01:18]}  dxc4+ {[%clk 0:02:15]} 34. Ke4 {[%clk 0:01:17]}  f5+ {[%clk 0:02:15]} 35. Kf3 {[%clk 0:01:17]}  Kd5 {[%clk 0:02:16]} 36. Ke3 {[%clk 0:01:10]}  h5 {[%clk 0:02:15]} 37. h4 {[%clk 0:01:04]}  c6 {[%clk 0:02:12]} 38. Kf3 {[%clk 0:01:02]}  Ke6 {[%clk 0:02:02]} 39. Ke3 {[%clk 0:01:00]}  Kd6 {[%clk 0:02:02]} 40. Kf3 {[%clk 0:01:00]}  c5 {[%clk 0:02:02]} 41. dxc5+ {[%clk 0:00:59]}  Kxc5 {[%clk 0:02:03]} 42. Ke3 {[%clk 0:00:59]}  Kd5 {[%clk 0:02:04]} 43. Kf3 {[%clk 0:00:58]}  g6 {[%clk 0:02:03]} 44. Ke3 {[%clk 0:00:57]}  Kc5 {[%clk 0:02:03]} 45. Kf3 {[%clk 0:00:57]}  Kc6 {[%clk 0:02:03]} 46. Ke3 {[%clk 0:00:57]}  Kd5 {[%clk 0:02:04]} 47. Kf3 {[%clk 0:00:51]} 1/2-1/2


[Site "https://www.chess.com"]